bitfinex-derivatives/quotes_ETHF0:USTF0_20250518
["timestamp","ask_amount","ask_price","bid_price","bid_amount"]
[1747560072784,0.79271,2522.2,2522.1,0.6267]
[1747560072985,0.79274,2522.1,2522.0,3.85077]
[1747560073175,0.79274,2522.1,2522.0,3.058]
[1747560073983,1.45134,2522.1,2522.0,3.058]
[1747560074286,1.45134,2522.1,2522.0,3.85077]
[1747560074485,0.79273,2522.2,2522.1,0.79274]
[1747560075288,0.79273,2522.2,2522.1,1.89118711]
[1747560077688,0.79273,2522.2,2522.1,1.09844711]
[1747560078091,0.79274,2522.1,2522.0,3.85074]
[1747560079187,0.79274,2522.1,2522.0,4.94964302]
[1747560080490,0.79274,2522.1,2522.0,4.15690302]
[1747560081296,0.79274,2522.1,2522.0,3.058]
[1747560081503,2.08784,2522.1,2522.0,3.058]
[1747560081695,1.98194,2522.0,2521.6,1.581075]
[1747560081890,4.00066,2521.7,2521.6,1.581075]
[1747560082091,7.05866,2521.7,2521.6,1.581075]
[1747560082289,12.05866,2521.7,2521.6,1.581075]
[1747560082598,0.79293,2521.5,2521.1,6.36995]
[1747560082795,16.36393,2521.5,2521.1,6.36995]
[1747560082990,21.36393,2521.5,2521.1,6.36995]
[1747560083186,22.65903,2521.5,2521.1,6.36995]
[1747560084297,17.65903,2521.5,2521.1,6.36995]
[1747560084501,0.79299,2521.3,2521.1,4.00083]
[1747560084701,0.79302,2521.2,2521.1,3.2078]
[1747560085205,0.79305,2521.1,2521.0,3.85107]
[1747560085594,0.79305,2521.1,2521.0,3.058]
[1747560085995,0.79302,2521.2,2521.0,3.058]
[1747560086291,0.79305,2521.1,2521.0,3.85107]
[1747560086495,0.79304,2521.2,2521.1,0.79305]
[1747560086697,8.4176,2521.4,2521.2,0.79302]
[1747560086897,0.793,2521.3,2521.2,0.79302]
[1747560087201,0.793,2521.3,2521.2,0.793]
[1747560087393,7.809,2521.4,2521.3,0.79299]
[1747560087598,0.79294,2521.5,2521.4,0.79296]
[1747560087800,0.79292,2521.6,2521.5,0.79291]
[1747560088000,0.79292,2521.6,2521.5,3.2078]
[1747560088199,0.79292,2521.6,2521.5,6.2658]
[1747560088399,0.79292,2521.6,2521.5,4.3944]
[1747560088903,0.79292,2521.6,2521.5,3.058]
[1747560089203,0.79296,2521.4,2521.3,1.3364]
[1747560089501,0.79293,2521.6,2521.5,0.7929]
[1747560089700,0.79291,2521.6,2521.5,0.79289]
[1747560089901,4.00065,2521.8,2521.7,0.79286]
[1747560090402,0.79289,2521.7,2521.6,3.85087]
[1747560091199,0.79289,2521.7,2521.6,0.79287]
[1747560091405,0.7929,2521.6,2521.5,3.85092]
[1747560091997,0.7929,2521.6,2521.5,43.858]
[1747560092195,0.7929,2521.6,2521.5,44.65093]
[1747560092408,0.7929,2521.6,2521.5,43.858]
[1747560092701,0.7929,2521.6,2521.5,3.058]
[1747560093407,0.79296,2521.4,2521.3,3.85098]
[1747560093607,0.79296,2521.4,2521.3,3.058]
[1747560094107,8.60296,2521.4,2521.3,3.058]
[1747560094608,10.58266,2521.4,2521.3,3.058]
[1747560098911,10.58266,2521.4,2521.3,2.87538913]
[1747560099515,18.41266,2521.4,2521.3,2.87538913]
[1747560099905,10.58266,2521.4,2521.3,2.87538913]
[1747560100210,18.41066,2521.4,2521.3,2.87538913]
[1747560102116,18.41066,2521.4,2521.3,0.09218003]
[1747560102917,2.77266,2521.4,2521.3,0.09218003]
[1747560103118,2.35873513,2521.5,2521.4,0.79296]
[1747560103313,2.35873513,2521.5,2521.4,1.44356]
[1747560103516,0.79293,2521.5,2521.4,1.44356]
[1747560103919,0.79293,2521.5,2521.4,0.6506]
[1747560104121,0.79293,2521.5,2521.4,3.7086]
[1747560105231,0.79293,2521.5,2521.4,3.058]
[1747560106233,5.25823,2521.5,2521.4,3.058]
[1747560107229,0.79296,2521.4,2521.3,0.09218003]
[1747560107431,2.05046,2521.4,2521.3,0.09218003]
[1747560107933,9.87846,2521.4,2521.3,0.09218003]
[1747560108235,2.05046,2521.4,2521.3,0.09218003]
[1747560108532,17.70246,2521.4,2521.3,0.09218003]
[1747560109132,2.05046,2521.4,2521.3,3.15018003]
[1747560109432,17.69946,2521.4,2521.3,3.15018003]
[1747560109627,17.69746,2521.4,2521.3,3.15018003]
[1747560110434,20.05619513,2521.4,2521.3,3.15018003]
[1747560110933,3.15169513,2521.4,2521.3,3.15018003]
[1747560111133,10.96269513,2521.4,2521.3,3.15018003]
[1747560111334,3.15169513,2521.4,2521.3,3.15018003]
[1747560111533,3.15169513,2521.4,2521.3,4.40448003]
[1747560113136,3.15169513,2521.4,2521.3,4.3123]
[1747560113837,0.79296,2521.4,2521.3,4.3123]
[1747560114036,2.04776,2521.4,2521.3,4.3123]
[1747560114238,2.04776,2521.4,2521.3,3.15018003]
[1747560116739,4.40649513,2521.4,2521.3,3.15018003]
[1747560117143,4.40649513,2521.4,2521.3,0.09218003]
[1747560118341,3.15169513,2521.4,2521.3,3.15018003]
[1747560118541,3.15169513,2521.4,2521.3,3.79708003]
[1747560118735,3.15169513,2521.4,2521.3,4.59007003]
[1747560118937,3.15169513,2521.4,2521.3,5.14748003]
[1747560119743,0.79296,2521.4,2521.3,5.14748003]
[1747560120735,0.79296,2521.4,2521.3,4.50058003]
[1747560120940,2.06336,2521.4,2521.3,3.15018003]
[1747560121335,2.06336,2521.4,2521.3,0.09218003]
[1747560122642,17.70536,2521.4,2521.3,0.09218003]
[1747560123844,20.83177902,2521.4,2521.3,0.09218003]
[1747560124440,0.79305,2521.1,2521.0,1.2427]
[1747560125243,0.79305,2521.1,2521.0,4.3007]
[1747560125445,2.68565,2521.1,2521.0,4.3007]
[1747560127143,2.68565,2521.1,2521.0,3.058]
[1747560127646,10.04911924,2521.1,2521.0,3.058]
[1747560127837,10.04911924,2521.1,2521.0,1.3085]
[1747560128037,10.04911924,2521.1,2521.0,0.38613]
[1747560128445,0.7933,2520.3,2520.2,1.58226395]
[1747560128650,8.6153,2520.3,2520.2,1.58226395]
[1747560129039,8.6153,2520.3,2520.2,3.69570395]
[1747560129235,0.79329,2520.4,2520.3,0.7933]
[1747560129447,0.79329,2520.4,2520.3,1.3201]
[1747560130349,0.79329,2520.4,2520.3,4.3781]
[1747560131144,0.79329,2520.4,2520.3,1.3201]
[1747560131336,2.09049,2520.4,2520.3,1.3201]
[1747560132639,0.79337,2520.1,2520.0,0.6442]
[1747560132845,4.00117,2520.1,2520.0,0.6442]
[1747560133147,0.7934,2520.0,2519.9,1.238]
[1747560133340,2.1563,2520.0,2519.9,1.238]
[1747560134044,0.79352,2519.6,2519.5,0.627]
[1747560134442,0.79356,2519.5,2519.4,1.58226395]
[1747560134644,1.43756,2519.5,2519.4,1.58226395]
[1747560135349,0.79365,2519.3,2519.2,1.238]
[1747560135649,0.79365,2519.2,2519.1,1.32234108]
[1747560136245,16.49164,2519.3,2519.1,1.32234108]
[1747560136448,16.49164,2519.3,2519.2,1.3091]
[1747560136650,0.79364,2519.3,2519.2,1.3091]
[1747560136849,8.61764,2519.3,2519.2,1.3091]
[1747560140557,13.19714,2519.3,2519.2,1.3091]
[1747560140850,0.79365,2519.2,2519.1,3.058]
[1747560141049,2.16535,2519.2,2519.1,3.058]
[1747560142050,1.3717,2519.2,2519.0,5.0273]
[1747560142247,0.79368,2519.1,2519.0,5.0273]
[1747560144255,8.65666,2519.2,2519.0,5.82099]
[1747560144456,7.826,2519.1,2519.0,5.0273]
[1747560144656,11.82742,2519.3,2519.0,5.0273]
[1747560144957,8.61962,2519.3,2519.1,0.79368]
[1747560145157,8.61962,2519.3,2519.2,1.3129]
[1747560147359,8.62062,2519.3,2519.2,1.3129]
[1747560149158,8.62062,2519.3,2519.2,2.10655]
[1747560149358,0.79361,2519.4,2519.3,0.79361]
[1747560149555,8.63961,2519.4,2519.3,2.15761]
[1747560150058,0.79361,2519.4,2519.3,2.15761]
[1747560150262,8.63961,2519.4,2519.3,5.21561]
[1747560150665,0.79361,2519.4,2519.3,4.422]
[1747560150859,8.63961,2519.4,2519.3,4.422]
[1747560151162,8.63961,2519.4,2519.3,5.21562]
[1747560151361,8.63961,2519.4,2519.3,4.422]
[1747560153063,9.97391,2519.4,2519.3,3.058]
[1747560154767,13.18171,2519.4,2519.3,3.15018003]
[1747560155162,13.18171,2519.4,2519.3,0.09218003]
[1747560157171,13.18171,2519.4,2519.3,3.15018003]
[1747560158070,13.18171,2519.4,2519.3,0.09218003]
[1747560158567,21.00671,2519.4,2519.3,0.09218003]
[1747560159163,21.00671,2519.4,2519.3,3.15018003]
[1747560160470,23.37017924,2519.4,2519.3,3.15018003]
[1747560161269,23.37017924,2519.4,2519.3,0.09218003]
[1747560161665,28.37017924,2519.4,2519.3,0.09218003]
[1747560163673,26.31586498,2519.4,2519.3,0.09218003]
[1747560164372,21.31586498,2519.4,2519.3,0.09218003]
[1747560167177,21.31586498,2519.4,2519.3,3.15018003]
[1747560167674,5.33571,2519.4,2519.3,3.15018003]
[1747560168073,20.98371,2519.4,2519.3,3.15018003]
[1747560168277,21.30765754,2519.4,2519.3,3.15018003]
[1747560169178,20.98371,2519.4,2519.3,3.15018003]
[1747560170872,20.97371,2519.4,2519.3,3.15018003]
[1747560172079,5.33571,2519.4,2519.3,3.15018003]
[1747560172377,20.96971,2519.4,2519.3,3.15018003]
[1747560173675,5.33571,2519.4,2519.3,3.15018003]
[1747560173874,19.64941,2519.4,2519.3,3.15018003]
[1747560174081,4.00141,2519.4,2519.3,3.15018003]
[1747560174273,19.64941,2519.4,2519.3,3.15018003]
[1747560174474,19.64941,2519.4,2519.3,4.39078003]
[1747560177578,19.64941,2519.4,2519.3,2.26902003]
[1747560177884,0.79371,2519.0,2518.9,1.3172]
[1747560178180,0.79378,2518.8,2518.7,0.6578]
[1747560178376,0.79378,2518.8,2518.7,1.9445]
[1747560178678,16.44578,2518.8,2518.7,1.9445]
[1747560178982,16.44478,2518.8,2518.7,1.9445]
[1747560179783,0.79381,2518.7,2518.6,3.058]
[1747560179979,3.34021,2518.7,2518.6,3.058]
[1747560180283,0.79384,2518.6,2518.5,3.058]
[1747560180484,2.04674,2518.6,2518.5,3.058]
[1747560181092,16.41184,2518.6,2518.5,3.058]
[1747560182386,0.79384,2518.6,2518.5,3.058]
[1747560182587,16.40784,2518.6,2518.5,3.058]
[1747560182784,7.804,2518.6,2518.5,3.058]
[1747560182983,3.2078,2518.7,2518.5,3.85187]
[1747560183189,3.2078,2518.7,2518.6,2.0069]
[1747560183379,11.0118,2518.7,2518.6,3.48344]
[1747560183784,11.0118,2518.7,2518.6,2.6896]
[1747560183985,11.0118,2518.7,2518.6,3.48344]
[1747560184291,11.80561,2518.7,2518.6,2.6896]
[1747560185094,11.80561,2518.7,2518.6,2.78178003]
[1747560185283,3.2078,2518.7,2518.6,3.57562003]
[1747560185486,11.0128,2518.7,2518.6,8.57562003]
[1747560185687,11.80661,2518.7,2518.6,2.78178003]
[1747560189997,14.1719474,2518.7,2518.6,2.78178003]
[1747560190393,15.4202474,2518.7,2518.6,0.77488003]
[1747560191298,15.4202474,2518.7,2518.6,2.12018003]
[1747560191998,15.4202474,2518.7,2518.6,0.09218003]
[1747560193290,5.24991,2518.7,2518.6,0.09218003]
[1747560193491,20.87191,2518.7,2518.6,0.09218003]
[1747560198113,13.05491,2518.7,2518.6,0.09218003]
[1747560198306,20.85991,2518.7,2518.6,0.09218003]
[1747560201912,24.01454622,2518.7,2518.6,0.09218003]
[1747560204816,8.40454622,2518.7,2518.6,0.09218003]
[1747560205023,24.00854622,2518.7,2518.6,0.09218003]
[1747560206320,8.40454622,2518.7,2518.6,0.09218003]
[1747560206517,24.03754622,2518.7,2518.6,0.09218003]
[1747560209427,24.03754622,2518.7,2518.6,3e-08]
[1747560209830,24.06654622,2518.7,2518.6,3e-08]
[1747560210728,0.79406,2517.9,2517.8,1.238]
[1747560211029,16.45706,2517.9,2517.8,1.238]
[1747560211223,16.45706,2517.9,2517.8,4.296]
[1747560211530,17.81946,2517.9,2517.8,4.296]
[1747560213136,0.79409,2517.8,2517.7,1.2976]
[1747560213318,2.04219,2517.8,2517.7,1.2976]
[1747560213522,2.04219,2517.8,2517.7,0.6331]
[1747560214136,2.04219,2517.8,2517.4,3.6962]
[1747560214137,0.79419,2517.5,2517.4,3.058]
[1747560214432,0.79422,2517.4,2517.3,1.9973]
[1747560215138,0.79422,2517.4,2517.3,5.0553]
[1747560217924,8.62622,2517.4,2517.3,5.0553]
[1747560218529,2.36114759,2517.5,2517.3,13.2631]
[1747560218732,2.36114759,2517.5,2517.4,2.14822]
[1747560219126,2.36114759,2517.5,2517.4,10.20622]
[1747560220234,0.79406,2518.0,2517.9,0.79405]
[1747560220430,0.79408,2517.9,2517.8,0.79407]
[1747560220630,0.79408,2517.9,2517.8,2.78667]
[1747560220830,0.79408,2517.9,2517.8,7.78667]
[1747560221140,0.79408,2517.9,2517.8,10.84467]
[1747560221633,1.98472,2518.5,2518.0,0.79402]
[1747560221839,8.62697,2518.2,2518.1,2.0464]
[1747560222038,8.62697,2518.2,2518.1,1.2524]
[1747560222535,8.62697,2518.2,2518.1,6.2524]
[1747560222736,8.62697,2518.2,2518.1,9.4602]
[1747560222940,0.79397,2518.2,2518.1,9.4602]
[1747560223341,0.79397,2518.2,2518.1,10.0936]
[1747560223536,0.79397,2518.2,2518.1,10.8876]
[1747560223736,0.79397,2518.2,2518.1,10.0936]
[1747560223937,0.79397,2518.2,2518.1,1.8858]
[1747560224138,8.62597,2518.2,2518.1,1.8858]
[1747560224347,8.62597,2518.2,2518.1,1.2524]
[1747560224641,0.794,2518.1,2518.0,3.058]
[1747560224941,5.2616,2518.1,2518.0,3.058]
[1747560225146,1.98508,2518.0,2517.7,0.09218003]
[1747560225440,4.00189,2517.8,2517.7,0.09218003]
[1747560225635,11.83389,2517.8,2517.7,0.09218003]
[1747560225941,13.72839,2517.8,2517.7,0.09218003]
[1747560227839,12.46859,2517.8,2517.7,0.09218003]
[1747560228048,19.71389,2517.8,2517.7,0.09218003]
[1747560228955,11.0398,2517.8,2517.7,0.88630003]
[1747560229245,4.00189,2517.8,2517.7,0.73768003]
[1747560229840,11.83489,2517.8,2517.7,0.73768003]
[1747560232448,11.83489,2517.8,2517.7,3e-08]
[1747560232745,13.76969,2517.8,2517.7,3e-08]
[1747560233138,5.93669,2517.8,2517.7,3e-08]
[1747560233335,21.68169,2517.8,2517.7,3e-08]
[1747560233949,5.93669,2517.8,2517.7,3e-08]
[1747560234142,21.68669,2517.8,2517.7,3e-08]
[1747560234542,5.93669,2517.8,2517.7,3e-08]
[1747560234743,21.68469,2517.8,2517.7,3e-08]
[1747560236046,21.68469,2517.8,2517.0,0.6854]
[1747560236047,0.79439,2516.9,2516.6,3.2078]
[1747560236254,7.833,2516.9,2516.8,0.79441]
[1747560236638,0.79433,2517.1,2516.9,0.79436]
[1747560236844,8.62733,2517.1,2516.9,0.79436]
[1747560237047,7.833,2517.1,2517.0,0.79433]
[1747560237351,0.79434,2517.0,2516.9,3.058]
[1747560238053,0.79434,2517.0,2516.9,4.433]
[1747560239349,0.79434,2517.0,2516.9,5.22738]
[1747560239551,0.79434,2517.0,2516.9,4.433]
[1747560239849,0.79434,2517.0,2516.9,5.22738]
[1747560240251,0.79434,2517.0,2516.9,4.433]
[1747560240854,0.79434,2517.0,2516.9,3.058]
[1747560241053,2.12374,2517.0,2516.9,3.058]
[1747560241964,2.11279631,2517.0,2516.9,3.058]
[1747560244053,2.11279631,2517.0,2516.6,3.2078]
[1747560244262,0.79444,2516.7,2516.6,3.2078]
[1747560244558,8.71344,2516.7,2516.6,3.2078]
[1747560244766,7.919,2516.7,2516.6,4.00227]
[1747560245951,8.71344,2516.7,2516.6,4.00227]
[1747560246365,8.71344,2516.7,2516.6,3.2078]
[1747560246661,7.919,2516.7,2516.6,4.00227]
[1747560246862,8.71344,2516.7,2516.6,5.31687]
[1747560247561,8.71344,2516.7,2516.6,4.5224]
[1747560247967,8.71344,2516.7,2516.6,3.2078]
[1747560250173,0.79444,2516.7,2516.6,5.31587]
[1747560250371,8.71444,2516.7,2516.6,4.5214]
[1747560250568,2.09973,2516.8,2516.6,5.31587]
[1747560250870,10.00973,2516.8,2516.7,1.3136]
[1747560251078,7.92,2516.9,2516.7,1.3136]
[1747560251271,0.79441,2516.8,2516.7,2.10804]
[1747560252170,0.79441,2516.8,2516.7,1.3136]
[1747560253080,2.81811,2516.8,2516.7,1.3136]
[1747560253880,0.79441,2516.8,2516.7,1.3136]
[1747560254082,0.79441,2516.8,2516.7,2.10804]
[1747560254278,8.71441,2516.8,2516.7,2.10804]
[1747560255675,8.71441,2516.8,2516.7,1.3136]
[1747560257075,0.79441,2516.8,2516.7,2.10804]
[1747560258679,0.79441,2516.8,2516.7,2.10801]
[1747560259387,0.79441,2516.8,2516.7,1.3136]
[1747560259784,8.7144,2516.9,2516.8,0.79441]
[1747560260184,8.7144,2516.9,2516.8,3.85241]
[1747560264089,8.71438,2516.9,2516.8,3.85241]
[1747560264892,7.92,2516.9,2516.8,3.85241]
[1747560265390,8.71438,2516.9,2516.8,3.85241]
[1747560265889,3.15059781,2517.2,2517.1,0.79431]
[1747560266086,3.15059781,2517.2,2517.1,4.00211]
[1747560266488,11.1278,2517.6,2517.5,0.79419]
[1747560267192,11.1278,2517.6,2517.5,3.85219]
[1747560267393,11.92196,2517.6,2517.5,5.09999]
[1747560267599,11.92196,2517.6,2517.5,4.3058]
[1747560267895,11.92196,2517.6,2517.5,3.058]
[1747560268494,11.92196,2517.6,2517.5,3.85219]
[1747560269097,3.2078,2517.6,2517.5,3.85219]
[1747560269294,4.00196,2517.6,2517.5,5.09999]
[1747560269596,3.2078,2517.6,2517.5,5.09999]
[1747560270600,4.00196,2517.6,2517.5,5.09999]
[1747560270895,3.2078,2517.6,2517.5,5.09999]
[1747560271399,4.00196,2517.6,2517.5,5.09999]
[1747560272097,5.35716,2517.6,2517.5,3.058]
[1747560273193,0.79428,2517.2,2517.1,0.7943]
[1747560273796,0.79428,2517.2,2517.1,2.1543]
[1747560273995,2.09688,2517.2,2517.1,2.1543]
[1747560274303,2.09688,2517.2,2517.1,2.15431]
[1747560275403,2.09688,2517.2,2517.1,2.24649003]
[1747560275905,1.3026,2517.2,2517.1,2.24649003]
[1747560276705,2.09688,2517.2,2517.1,2.24649003]
[1747560276903,1.3026,2517.2,2517.1,2.24649003]
[1747560277297,2.09688,2517.2,2517.1,2.24649003]
[1747560279299,0.79426,2517.3,2517.1,1.45218003]
[1747560279507,0.79428,2517.2,2517.1,0.09218003]
[1747560279704,2.11318,2517.2,2517.1,0.88648003]
[1747560280301,2.11318,2517.2,2517.1,0.09218003]
[1747560280803,2.11318,2517.2,2517.1,0.88649003]
[1747560281002,2.11318,2517.2,2517.1,0.09218003]
[1747560302822,2.11318,2517.2,2517.1,2.03008003]
[1747560303223,17.75218,2517.2,2517.1,2.03008003]
[1747560303824,8.61428,2517.2,2517.1,2.03008003]
[1747560304025,0.79428,2517.2,2517.1,2.03008003]
[1747560304226,8.61428,2517.2,2517.1,2.03008003]
[1747560304819,0.79428,2517.2,2517.1,2.03008003]
[1747560305226,0.79428,2517.2,2517.1,2.82439003]
[1747560305625,10.97341765,2517.3,2517.1,5.23788003]
[1747560305824,10.97341765,2517.3,2517.2,0.79428]
[1747560306019,0.79428,2517.2,2517.1,4.73917003]
[1747560306225,0.79428,2517.2,2517.1,7.79717003]
[1747560307122,0.79422,2517.4,2517.3,0.79422]
[1747560307325,0.79428,2517.2,2517.1,4.73918003]
[1747560308125,0.79428,2517.2,2517.1,3.94488003]
[1747560309127,0.79428,2517.2,2517.1,4.73919003]
[1747560309629,0.79428,2517.2,2517.1,3.94488003]
[1747560310728,0.79428,2517.2,2517.1,4.73919003]
[1747560311531,7.82,2517.6,2517.1,3.94488003]
[1747560311730,0.7942,2517.5,2517.4,0.79419]
[1747560312034,7.82,2517.6,2517.5,0.79419]
[1747560312226,0.79416,2517.6,2517.5,0.79419]
[1747560312529,0.7942,2517.5,2517.4,0.79419]
[1747560313331,3.15341765,2517.7,2517.3,0.79423]
[1747560313332,0.79425,2517.4,2517.3,0.79423]
[1747560313833,0.79425,2517.4,2517.3,5.79423]
[1747560314231,0.79425,2517.4,2517.3,8.85223]
[1747560314735,0.79421,2517.5,2517.4,0.79418]
[1747560315727,0.79422,2517.4,2517.3,3.058]
[1747560316325,0.79422,2517.4,2517.3,3.85225]
[1747560317334,3.2078,2517.8,2517.7,0.79412]
[1747560317537,3.15341765,2517.9,2517.8,0.79409]
[1747560317833,3.94565258,2518.0,2517.9,0.79406]
[1747560318033,3.94565258,2518.0,2517.9,4.00186]
[1747560318236,3.94565258,2518.0,2517.9,13.41126]
[1747560320431,3.94565258,2518.0,2517.9,8.41126]
[1747560320740,0.79397,2518.2,2518.1,0.794]
[1747560321437,0.79397,2518.2,2518.1,2.051]
[1747560322743,0.79397,2518.2,2518.1,1.257]
[1747560323236,0.79397,2518.2,2518.0,3.058]
[1747560323237,0.794,2518.1,2518.0,3.058]
[1747560323439,6.5636,2518.1,2518.0,3.058]
[1747560323635,11.5636,2518.1,2518.0,3.058]
[1747560324037,0.79403,2518.0,2517.9,0.09218003]
[1747560324240,2.07013,2518.0,2517.9,0.09218003]
[1747560324435,7.07013,2518.0,2517.9,0.09218003]
[1747560325141,7.07013,2518.0,2517.9,3.15018003]
[1747560325343,2.07013,2518.0,2517.9,3.15018003]
[1747560331847,5.28751,2518.1,2517.9,3.15018003]
[1747560332040,0.794,2518.1,2518.0,2.12081]
[1747560332242,0.79393,2518.3,2518.2,0.79397]
[1747560332646,0.79393,2518.3,2518.1,2.12077]
[1747560332835,0.79397,2518.2,2518.1,1.3268]
[1747560333638,0.79397,2518.2,2518.1,2.1208]
[1747560334146,0.79397,2518.2,2518.1,1.3268]
[1747560336048,0.79397,2518.2,2518.1,2.1208]
[1747560336241,0.79397,2518.2,2518.1,2.21298003]
[1747560336741,0.79397,2518.2,2518.1,1.41898003]
[1747560337051,0.79397,2518.2,2518.1,2.21298003]
[1747560339151,0.79397,2518.2,2518.1,1.41898003]
[1747560340353,0.79397,2518.2,2518.1,0.09218003]
[1747560345154,4.00177,2518.2,2518.1,0.09218003]
[1747560349353,3.94320454,2518.4,2518.3,0.79393]
[1747560349558,3.14930454,2518.4,2518.3,0.79393]
[1747560350062,3.94320454,2518.4,2518.3,0.79393]
[1747560350259,3.94320454,2518.4,2518.3,3.85193]
[1747560351363,3.94320454,2518.4,2518.3,3.058]
[1747560352358,0.7939,2518.4,2518.3,3.058]
[1747560360960,0.7939,2518.4,2518.3,4.3964]
[1747560361361,0.7939,2518.4,2518.3,3.058]
[1747560363664,2.11,2518.4,2518.3,3.058]
[1747560365167,0.7939,2518.4,2518.3,3.058]
[1747560365569,0.7939,2518.4,2518.3,3.15018003]
[1747560366464,2.1522,2518.4,2518.3,3.15018003]
[1747560368470,5.30150454,2518.4,2518.3,3.15018003]
[1747560369471,5.30150454,2518.4,2517.8,0.6401]
[1747560369472,0.79406,2517.9,2517.8,0.6401]
[1747560370067,0.79406,2517.9,2517.8,4.9418]
[1747560370771,7.81,2518.2,2518.0,0.79402]
[1747560370965,8.60397,2518.2,2518.1,1.3661]
[1747560371672,8.60397,2518.2,2518.1,2.0028]
[1747560373475,8.60397,2518.2,2518.1,2.7968]
[1747560373676,7.81,2518.2,2518.1,2.7968]
[1747560373976,3.16150137,2518.5,2518.4,0.7939]
[1747560374479,3.95537137,2518.5,2518.4,0.7939]
[1747560375174,0.7939,2518.4,2518.3,2.87749003]
[1747560375674,0.7939,2518.4,2518.3,7.87749003]
[1747560375974,0.7939,2518.4,2518.3,2.08358003]
[1747560376174,0.7939,2518.4,2518.3,5.14158003]
[1747560376372,4.0017,2518.4,2518.3,3.15018003]
[1747560376574,5.374,2518.4,2518.3,3.15018003]
[1747560377176,2.1662,2518.4,2518.3,3.15018003]
[1747560377378,5.374,2518.4,2518.3,3.15018003]
[1747560377580,1.98508,2518.1,2517.6,2.37832556]
[1747560377773,22.37823,2518.0,2517.9,0.09218003]
[1747560378782,0.79409,2517.8,2517.6,2.37832556]
[1747560379478,0.79411,2517.8,2517.5,3.2078]
[1747560379681,0.79411,2517.8,2517.5,4.00197]
[1747560380078,0.79411,2517.8,2517.5,7.05997]
[1747560380280,0.79411,2517.8,2517.6,0.79415]
[1747560381878,0.79415,2517.6,2517.5,6.2658]
[1747560382576,1.44455,2517.6,2517.5,6.2658]
[1747560383376,1.44455,2517.6,2517.5,3.058]
[1747560383377,9.93725,2517.6,2517.5,3.058]
[1747560383683,17.81425,2517.6,2517.5,3.058]
[1747560383881,19.09985,2517.6,2517.5,3.058]
[1747560391084,0.79428,2517.2,2517.1,3.8585]
[1747560392087,0.79424,2517.4,2517.1,3.8585]
[1747560392281,0.79424,2517.4,2517.2,0.79425]
[1747560392483,0.79425,2517.3,2517.2,0.79425]
[1747560393486,19.00553,2517.6,2517.1,6.9165]
[1747560393686,1.98547,2517.5,2517.1,6.9165]
[1747560393888,0.79428,2517.2,2517.1,7.7108]
[1747560394188,0.79428,2517.2,2517.1,4.6528]
[1747560395078,0.79428,2517.2,2517.1,4.74498003]
[1747560396083,0.79428,2517.2,2517.1,3.95068003]
[1747560397387,0.79428,2517.2,2517.1,4.74499003]
[1747560397591,0.79428,2517.2,2517.1,3.95068003]
[1747560398089,0.79428,2517.2,2517.1,4.74499003]
[1747560398280,0.79428,2517.2,2517.1,6.11759003]
[1747560398783,0.79428,2517.2,2517.1,5.32328003]
[1747560399088,0.79428,2517.2,2517.1,6.11759003]
[1747560400887,0.79426,2517.3,2517.2,0.79425]
[1747560401087,2.09444,2517.4,2517.3,0.79425]
[1747560401286,0.79428,2517.3,2517.2,0.79426]
[1747560401783,0.79428,2517.2,2517.1,4.74498003]
[1747560402691,2.09447,2517.3,2517.2,0.79428]
[1747560403189,0.79428,2517.2,2517.1,7.80297003]
[1747560403592,2.11278,2517.2,2517.1,6.35798003]
[1747560404088,2.11278,2517.2,2517.1,3.29998003]
[1747560405688,2.11278,2517.2,2517.1,4.09429003]
[1747560406186,0.79428,2517.2,2517.1,4.09429003]
[1747560406794,2.09447,2517.3,2517.2,0.79428]
[1747560407994,0.79428,2517.2,2517.1,7.15227003]
[1747560409187,0.79428,2517.2,2517.1,4.09427003]
[1747560409495,0.79428,2517.2,2517.1,3.29998003]
[1747560409793,0.79428,2517.2,2517.1,4.09429003]
[1747560410293,0.79428,2517.2,2517.1,3.29998003]
[1747560416396,0.79428,2517.2,2517.1,4.09429003]
[1747560416597,0.79428,2517.2,2517.1,3.29998003]
[1747560417706,2.09446,2517.3,2517.1,3.29998003]
[1747560417900,2.09446,2517.3,2517.2,0.79428]
[1747560418107,0.79426,2517.3,2517.2,0.79428]
[1747560418308,0.79426,2517.3,2517.2,2.09108]
[1747560418505,3.16150137,2517.5,2517.4,0.79422]
[1747560418709,3.95569137,2517.5,2517.4,0.79422]
[1747560419101,3.95569137,2517.5,2517.4,5.79012]
[1747560420112,0.79419,2517.5,2517.4,5.79012]
[1747560420606,3.16150137,2517.8,2517.4,4.9959]
[1747560420811,3.16150137,2517.8,2517.7,4.00192]
[1747560421610,3.95559137,2517.8,2517.7,5.96942]
[1747560422313,3.16150137,2517.8,2517.7,5.96942]
[1747560423112,10.65335,2518.0,2517.9,0.79406]
[1747560424213,10.65335,2518.0,2517.9,3.85206]
[1747560424409,10.65335,2518.0,2517.9,5.10536]
[1747560425111,10.65335,2518.0,2517.9,4.3113]
[1747560425313,10.65335,2518.0,2517.9,4.40348003]
[1747560425614,1.46272,2518.1,2517.9,4.40348003]
[1747560425909,3.38895,2518.3,2518.2,0.79397]
[1747560426711,3.38895,2518.3,2518.2,2.69717]
[1747560427915,2.595,2518.3,2518.2,2.69717]
[1747560428110,8.58993,2518.4,2518.3,0.79393]
[1747560428414,0.79388,2518.5,2518.4,0.7939]
[1747560428609,3.81080137,2518.6,2518.3,1.2679]
[1747560428809,0.79388,2518.5,2518.4,0.79388]
[1747560429014,0.7939,2518.4,2518.3,2.06181]
[1747560429207,0.7939,2518.4,2518.3,5.11981]